bitfinex-derivatives/quotes_BTCF0:USTF0_20250117
["timestamp","ask_amount","ask_price","bid_price","bid_amount"]
[1737116307308,0.32482306,102570.0,102560.0,0.6602083]
[1737116307800,0.32482306,102570.0,102560.0,0.65532999]
[1737116309303,0.14947263,102570.0,102560.0,0.65532999]
[1737116309605,0.14947263,102570.0,102560.0,0.29452999]
[1737116310105,0.14947263,102570.0,102560.0,0.29148105]
[1737116310309,0.14947263,102570.0,102560.0,0.29453006]
[1737116310508,0.32482306,102570.0,102560.0,0.29453006]
[1737116312406,0.32482306,102570.0,102560.0,0.65533006]
[1737116314304,0.32482306,102570.0,102560.0,0.29453006]
[1737116314702,0.32482306,102570.0,102560.0,0.29453007]
[1737116315714,0.14947263,102570.0,102560.0,1.12117175]
[1737116316012,0.14947263,102570.0,102560.0,1.11154163]
[1737116316202,0.51027263,102570.0,102560.0,1.06278263]
[1737116317008,0.51027263,102570.0,102560.0,0.7136533]
[1737116317605,0.14947263,102570.0,102560.0,0.7136533]
[1737116317808,0.14947263,102570.0,102560.0,0.71365327]
[1737116318403,0.14947263,102570.0,102560.0,0.71365324]
[1737116318605,0.51027263,102570.0,102560.0,0.71365324]
[1737116322314,0.450354,102570.0,102560.0,0.76241224]
[1737116322513,0.51027263,102570.0,102560.0,0.76241243]
[1737116322709,0.089554,102570.0,102560.0,1.12321243]
[1737116323013,0.14947263,102570.0,102560.0,1.18313083]
[1737116323208,0.14947263,102570.0,102560.0,1.18800906]
[1737116323607,0.14947263,102570.0,102560.0,1.12809043]
[1737116324207,0.089554,102570.0,102560.0,1.12809043]
[1737116324417,0.14947263,102570.0,102560.0,1.12809043]
[1737116325009,0.089554,102570.0,102560.0,1.12809043]
[1737116325317,0.14947263,102570.0,102560.0,1.12808543]
[1737116325711,0.14947263,102570.0,102560.0,1.18800406]
[1737116327509,0.0402,102580.0,102570.0,0.048749]
[1737116327708,0.26749143,102590.0,102580.0,0.048744]
[1737116327917,0.26749143,102590.0,102580.0,0.53730749]
[1737116327918,0.22409143,102590.0,102580.0,0.53730749]
[1737116328211,0.17535043,102590.0,102580.0,0.57750749]
[1737116328615,0.69807654,102600.0,102590.0,0.04874]
[1737116328812,0.69807654,102600.0,102590.0,0.11170755]
[1737116329014,0.69807654,102600.0,102590.0,0.05178892]
[1737116329216,0.69807654,102600.0,102590.0,0.04874]
[1737116329618,0.52272611,102600.0,102590.0,0.34139034]
[1737116329926,0.11318911,102600.0,102590.0,0.70523839]
[1737116330219,0.21875043,102610.0,102590.0,0.76210897]
[1737116330522,0.17535043,102610.0,102600.0,0.56977226]
[1737116330718,0.17535043,102610.0,102600.0,0.50985363]
[1737116330916,0.40819606,102620.0,102610.0,0.04873]
[1737116331122,0.41776711,102620.0,102610.0,0.04873]
[1737116331430,0.17535043,102620.0,102610.0,0.46944863]
[1737116331809,0.17535043,102620.0,102610.0,0.48468456]
[1737116332218,0.28399106,102630.0,102620.0,0.048725]
[1737116332418,0.28399106,102630.0,102620.0,0.51084363]
[1737116333508,0.10864063,102630.0,102620.0,0.38292499]
[1737116333722,0.10864063,102630.0,102620.0,0.44284362]
[1737116334016,0.10864063,102630.0,102620.0,0.3608]
[1737116334219,0.10864063,102630.0,102620.0,0.409525]
[1737116334521,0.39263169,102630.0,102620.0,0.409525]
[1737116335222,0.47513169,102630.0,102620.0,0.409525]
[1737116336624,0.19114063,102630.0,102620.0,0.409525]
[1737116337513,0.19114063,102630.0,102610.0,0.47263663]
[1737116337719,0.10864363,102620.0,102610.0,0.52136363]
[1737116338612,0.10864363,102620.0,102610.0,0.45336362]
[1737116338934,0.19114163,102630.0,102620.0,0.048725]
[1737116339127,0.19114163,102630.0,102620.0,0.409525]
[1737116343129,0.19114163,102630.0,102620.0,0.46944363]
[1737116343635,0.19114163,102630.0,102620.0,0.40144362]
[1737116343822,0.19114163,102630.0,102620.0,0.45016862]
[1737116345221,0.05017828,102640.0,102630.0,0.048721]
[1737116345426,0.05017828,102640.0,102630.0,0.59433963]
[1737116345727,0.11009691,102640.0,102630.0,0.534421]
[1737116345924,0.11009691,102640.0,102630.0,2.034421]
[1737116346521,0.11009691,102640.0,102630.0,0.173621]
[1737116346725,0.21411554,102640.0,102630.0,0.088821]
[1737116347129,0.19459691,102640.0,102630.0,0.088821]
[1737116347519,0.05670486,102650.0,102630.0,0.50953963]
[1737116347729,0.05670486,102650.0,102640.0,0.10863463]
[1737116347932,0.41750486,102650.0,102640.0,0.05991863]
[1737116348130,0.47742349,102650.0,102640.0,0.05991863]
[1737116348532,0.47742349,102650.0,102640.0,0.10863463]
[1737116348721,0.00301921,102660.0,102650.0,0.048711]
[1737116348922,0.00301921,102660.0,102650.0,0.52934826]
[1737116349127,0.22811472,102670.0,102650.0,0.52934826]
[1737116349434,0.4095802,102690.0,102680.0,0.048697]
[1737116349628,0.46949883,102690.0,102670.0,0.42071863]
[1737116349832,0.048697,102680.0,102670.0,0.42071863]
[1737116350327,0.4095822,102690.0,102670.0,0.52933826]
[1737116350532,0.46950083,102690.0,102680.0,0.05991863]
[1737116351224,0.4095822,102690.0,102680.0,0.05991863]
[1737116351425,0.4095822,102690.0,102680.0,0.09109891]
[1737116351426,0.4095782,102690.0,102680.0,0.09109891]
[1737116351627,0.048697,102680.0,102670.0,0.50059991]
[1737116352030,0.048697,102680.0,102670.0,0.3608]
[1737116352234,0.048702,102670.0,102650.0,0.50207099]
[1737116352431,0.048702,102670.0,102650.0,0.00146108]
[1737116352432,0.59170382,102660.0,102650.0,0.00146108]
[1737116352625,0.62620491,102660.0,102650.0,0.00146108]
[1737116352934,0.71730382,102660.0,102650.0,0.00146108]
[1737116353130,0.71730382,102660.0,102640.0,0.17439918]
[1737116353428,0.048716,102640.0,102630.0,0.06700818]
[1737116353632,0.13981491,102640.0,102630.0,0.06700818]
[1737116353949,0.54241491,102640.0,102630.0,0.06700818]
[1737116354436,0.13289891,102640.0,102620.0,0.06349194]
[1737116354734,0.048721,102630.0,102620.0,0.42429194]
[1737116355032,0.13981991,102630.0,102620.0,0.42429194]
[1737116355725,0.05976859,102630.0,102620.0,0.42429194]
[1737116356037,0.048721,102630.0,102620.0,0.42429194]
[1737116356232,0.048721,102630.0,102620.0,0.42733872]
[1737116356233,0.13981991,102630.0,102620.0,0.42733872]
[1737116356928,0.13981991,102630.0,102620.0,0.42429194]
[1737116357128,0.54241591,102640.0,102630.0,0.048721]
[1737116357932,0.18161591,102640.0,102630.0,0.048721]
[1737116359932,0.491608,102660.0,102650.0,0.048711]
[1737116360126,0.172808,102660.0,102650.0,0.409511]
[1737116360434,0.172808,102660.0,102650.0,0.4125571]
[1737116361449,0.1241,102660.0,102650.0,0.50365601]
[1737116361627,0.172806,102660.0,102650.0,1.19690609]
[1737116361827,0.45189891,102670.0,102650.0,1.19690609]
[1737116362030,0.048706,102660.0,102650.0,1.19690109]
[1737116362829,0.50060091,102670.0,102660.0,0.048706]
[1737116363539,0.50060091,102670.0,102650.0,1.17456098]
[1737116363741,0.50060091,102670.0,102660.0,0.048706]
[1737116364032,0.409502,102670.0,102660.0,0.048706]
[1737116364238,0.3608,102670.0,102660.0,0.048706]
[1737116364534,0.409502,102670.0,102660.0,0.048706]
[1737116364838,0.409502,102670.0,102660.0,0.0517519]
[1737116365031,0.409502,102670.0,102660.0,0.28296514]
[1737116367842,0.50060091,102670.0,102660.0,0.28296514]
[1737116368335,0.50060091,102670.0,102660.0,0.28296512]
[1737116368635,0.50060091,102670.0,102660.0,0.00304588]
[1737116368835,0.50060091,102670.0,102660.0,0.05175188]
[1737116369226,0.409502,102670.0,102660.0,0.05175188]
[1737116373034,0.179399,102680.0,102670.0,0.048702]
[1737116373229,0.179399,102680.0,102670.0,0.05174769]
[1737116373642,0.179399,102680.0,102670.0,0.09109891]
[1737116373943,0.179399,102680.0,102670.0,0.13980091]
[1737116374540,0.179399,102680.0,102670.0,0.048702]
[1737116375742,8.62e-05,102690.0,102670.0,0.55417588]
[1737116375946,0.509487,102700.0,102690.0,0.048692]
[1737116376132,0.509487,102700.0,102690.0,0.13979091]
[1737116376133,0.4608,102700.0,102690.0,0.13979091]
[1737116377639,0.4608,102700.0,102690.0,0.09109891]
[1737116377851,0.4608,102700.0,102680.0,0.65218266]
[1737116377852,0.23978791,102700.0,102680.0,0.65218266]
[1737116378139,0.4608,102700.0,102680.0,0.29625466]
[1737116378443,0.509489,102700.0,102680.0,0.77982272]
[1737116378643,0.509489,102700.0,102690.0,0.09109891]
[1737116379144,0.148689,102700.0,102680.0,0.50059491]
[1737116379344,0.148689,102700.0,102680.0,0.51764717]
[1737116379730,0.148689,102700.0,102680.0,0.53713529]
[1737116380140,0.148689,102700.0,102680.0,0.51764717]
[1737116380637,0.197381,102700.0,102680.0,0.51764701]
[1737116380844,0.048692,102690.0,102680.0,0.51764701]
[1737116382137,0.048692,102690.0,102680.0,0.51277498]
[1737116382542,0.048692,102690.0,102680.0,0.50059491]
[1737116383042,0.048692,102690.0,102680.0,0.13979491]
[1737116383440,0.048692,102690.0,102680.0,0.048696]
[1737116385145,0.409492,102690.0,102680.0,0.048696]
[1737116385349,0.048697,102680.0,102670.0,0.63707415]
[1737116385648,0.048697,102680.0,102670.0,0.65230061]
[1737116385844,0.048697,102680.0,102670.0,0.64011949]
[1737116386149,0.048697,102680.0,102670.0,0.65230072]
[1737116386648,0.048697,102680.0,102670.0,0.65230063]
[1737116390035,0.048697,102680.0,102670.0,0.60800063]
[1737116390642,0.048697,102680.0,102670.0,0.63236317]
[1737116390842,0.048697,102680.0,102670.0,1.31399105]
[1737116392552,0.135593,102690.0,102680.0,0.048697]
[1737116392744,0.0869,102690.0,102680.0,0.52069386]
[1737116393251,0.0869,102690.0,102680.0,0.5401821]
[1737116394853,0.0869,102690.0,102680.0,1.22059119]
[1737116395751,0.0445,102690.0,102680.0,1.22059119]
[1737116397956,0.1416,102700.0,102690.0,0.048692]
[1737116398251,0.1416,102700.0,102690.0,0.13979091]
[1737116398445,0.1416,102700.0,102690.0,0.14283591]
[1737116398845,0.1416,102700.0,102690.0,0.13979091]
[1737116399151,0.1416,102700.0,102690.0,0.14283591]
[1737116399338,0.1416,102700.0,102690.0,0.14283587]
[1737116399840,0.1416,102700.0,102690.0,0.048692]
[1737116400044,0.1416,102700.0,102690.0,0.05173695]
[1737116400245,0.1416,102700.0,102690.0,0.50363586]
[1737116400749,0.1416,102700.0,102690.0,0.50363582]
[1737116401250,0.1416,102700.0,102690.0,0.14283582]
[1737116402555,0.1,102700.0,102690.0,0.62639942]
[1737116403152,0.1,102700.0,102690.0,0.6362927]
[1737116403455,0.60747765,102730.0,102720.0,0.048678]
[1737116403660,0.4447,102730.0,102720.0,0.14282106]
[1737116405252,0.4447,102730.0,102720.0,0.05172215]
[1737116405454,0.048678,102720.0,102710.0,0.29138266]
[1737116405760,0.048683,102710.0,102700.0,0.34912933]
[1737116405956,0.50058191,102710.0,102700.0,0.34912933]
[1737116406256,0.50058191,102710.0,102690.0,0.45158215]
[1737116406480,0.3608,102700.0,102690.0,0.50027215]
[1737116406655,0.50058391,102710.0,102690.0,0.81238215]
[1737116406955,0.409485,102710.0,102700.0,0.09109891]
[1737116407155,0.3608,102710.0,102700.0,0.09109891]
[1737116407361,0.409479,102720.0,102700.0,0.09109891]
[1737116407664,0.407729,102720.0,102700.0,0.12519891]
[1737116407956,0.407729,102720.0,102700.0,0.20554973]
[1737116408458,0.048683,102710.0,102700.0,0.11445074]
[1737116408662,0.50058191,102710.0,102700.0,0.03166374]
[1737116408857,0.048687,102700.0,102690.0,0.36048324]
[1737116409156,0.58628591,102700.0,102690.0,0.35058996]
[1737116409361,0.58628591,102700.0,102690.0,0.00146063]
[1737116411854,0.048702,102670.0,102660.0,0.53143224]
[1737116412056,0.13980091,102670.0,102660.0,0.38080453]
[1737116412256,0.409502,102670.0,102660.0,0.4719048]
[1737116412448,0.048702,102670.0,102660.0,0.52060984]
[1737116412647,0.048702,102670.0,102660.0,0.49862773]
[1737116412952,0.50060091,102670.0,102660.0,0.38080597]
[1737116413153,0.13980091,102670.0,102650.0,0.13980891]
[1737116413353,0.048706,102660.0,102650.0,0.17148583]
[1737116413852,0.409506,102660.0,102650.0,0.17148583]
[1737116414048,0.409506,102660.0,102650.0,0.17635943]
[1737116414461,0.3608,102660.0,102650.0,0.17636081]
[1737116414666,0.3608,102660.0,102650.0,0.56865292]
[1737116414852,0.409503,102670.0,102650.0,0.56865292]
[1737116415057,0.409503,102670.0,102660.0,0.048706]
[1737116416356,0.048703,102670.0,102660.0,0.13980491]
[1737116416755,0.048703,102670.0,102660.0,0.15198834]
[1737116417055,0.048703,102670.0,102660.0,0.13980491]
[1737116417253,0.409503,102670.0,102660.0,0.13980491]
[1737116417448,0.409503,102670.0,102660.0,0.14285084]
[1737116417654,0.409503,102670.0,102660.0,0.05175193]
[1737116417951,0.58029891,102680.0,102660.0,0.05175193]
[1737116418150,0.048703,102670.0,102660.0,0.05175193]
[1737116418356,0.13980191,102670.0,102660.0,0.05175193]
[1737116418857,0.13980191,102670.0,102660.0,0.00304593]
[1737116419161,0.048706,102660.0,102650.0,0.4194378]
[1737116419466,0.13980491,102660.0,102650.0,0.4346678]
[1737116419658,0.409504,102670.0,102660.0,0.048706]
[1737116420156,0.58029891,102680.0,102660.0,0.13980491]
[1737116420353,0.4443,102680.0,102670.0,0.13980091]
[1737116420555,0.0835,102680.0,102670.0,0.50364659]
[1737116422657,0.0835,102680.0,102670.0,0.50364645]
[1737116423459,0.0835,102680.0,102670.0,0.41254754]
[1737116423652,0.22329591,102680.0,102670.0,0.41254754]
[1737116425260,0.132197,102680.0,102670.0,0.41254754]
[1737116425460,0.22329591,102680.0,102670.0,0.41254754]
[1737116425665,0.132197,102680.0,102670.0,0.41254754]
[1737116426765,0.132197,102680.0,102670.0,0.41254756]
[1737116429981,0.132197,102680.0,102670.0,0.409502]
[1737116430175,0.048702,102670.0,102660.0,0.27974658]
[1737116430478,0.18390091,102670.0,102660.0,0.28279236]
[1737116430670,0.18390091,102670.0,102660.0,0.27974658]
[1737116431481,0.092802,102670.0,102660.0,0.27974658]
[1737116431778,0.18390091,102670.0,102660.0,0.28279249]
[1737116432074,0.18390091,102670.0,102660.0,0.05174991]
[1737116433483,0.54470091,102670.0,102660.0,0.05174991]
[1737116433679,0.54470091,102670.0,102660.0,0.00304591]
[1737116433888,0.048706,102660.0,102650.0,0.28968238]
[1737116434068,0.409506,102660.0,102650.0,0.27975358]
[1737116434378,0.50060491,102660.0,102650.0,0.05175723]
[1737116435080,0.13980491,102660.0,102650.0,0.409511]
[1737116435282,0.13980491,102660.0,102650.0,0.05175712]
[1737116435484,0.13980491,102660.0,102650.0,0.41255714]
[1737116435676,0.13980491,102660.0,102650.0,0.05175714]
[1737116435872,0.13980491,102660.0,102650.0,0.41255714]
[1737116436073,0.50060491,102660.0,102650.0,0.05175714]
[1737116437080,0.50060491,102660.0,102650.0,0.28279983]
[1737116437480,0.59170382,102660.0,102650.0,0.28279983]
[1737116437879,0.59170382,102660.0,102650.0,0.27975358]
[1737116438079,0.59170382,102660.0,102650.0,0.28279987]
[1737116438685,0.50060491,102660.0,102650.0,0.05175729]
[1737116439086,0.50060491,102660.0,102650.0,0.00304629]
[1737116439288,0.59170382,102660.0,102650.0,0.00304629]
[1737116439784,0.048711,102650.0,102640.0,0.39172154]
[1737116439985,0.048711,102650.0,102640.0,0.39476795]
[1737116439986,0.22650991,102650.0,102640.0,0.39476795]
[1737116440283,0.22650991,102650.0,102640.0,0.34255644]
[1737116440990,0.58730991,102650.0,102640.0,0.29384244]
[1737116441188,0.58730991,102650.0,102640.0,0.236184]
[1737116441383,0.58730991,102650.0,102640.0,0.23313759]
[1737116443179,0.58730991,102650.0,102640.0,0.23618429]
[1737116443492,0.58730991,102650.0,102640.0,0.00450793]
[1737116443680,0.62870991,102650.0,102640.0,0.00450793]
[1737116445284,0.048716,102640.0,102630.0,0.28039636]
[1737116445486,0.50061491,102640.0,102630.0,0.28344322]
[1737116446597,0.048716,102640.0,102630.0,0.05176686]
[1737116446788,0.13981491,102640.0,102630.0,0.09396686]
[1737116447694,0.50061491,102640.0,102630.0,0.09396686]
[1737116448593,0.50061491,102640.0,102630.0,0.00304686]
[1737116449394,0.50061491,102640.0,102630.0,0.0030469]
[1737116449997,0.50061491,102640.0,102620.0,0.65115321]
[1737116449998,0.048721,102630.0,102620.0,0.65115321]
[1737116450300,0.13981991,102630.0,102620.0,0.95572277]
[1737116450592,0.18291991,102630.0,102620.0,0.95572277]
[1737116451393,0.18291991,102630.0,102620.0,0.66638805]
[1737116451593,0.18291991,102630.0,102620.0,0.65420016]
[1737116451895,0.22791991,102630.0,102620.0,0.24467716]
[1737116452097,0.22791991,102630.0,102620.0,0.23472331]
[1737116452599,0.22791991,102630.0,102620.0,0.23167636]
[1737116452790,0.58871991,102630.0,102620.0,0.23167636]
[1737116454299,0.58871991,102630.0,102620.0,0.048725]
[1737116457398,0.58871991,102630.0,102620.0,0.28344853]
[1737116458394,0.58871991,102630.0,102620.0,0.05177217]
[1737116460503,0.136821,102630.0,102620.0,0.05177217]
[1737116461307,0.22791991,102630.0,102620.0,0.05177205]
[1737116462903,0.091821,102630.0,102620.0,0.05177205]
[1737116463090,0.091821,102630.0,102620.0,0.28344841]
[1737116464899,0.091821,102630.0,102620.0,0.64424841]
[1737116465099,0.091821,102630.0,102620.0,0.64424831]
[1737116465603,0.091821,102630.0,102620.0,0.7353472]
[1737116465910,0.091821,102630.0,102620.0,1.41873304]
[1737116466405,0.048723,102630.0,102620.0,1.41873304]
[1737116468399,0.18081491,102640.0,102620.0,1.41873304]
[1737116468604,0.048723,102630.0,102620.0,1.18705668]
[1737116469603,0.132816,102640.0,102620.0,1.18705668]
[1737116469801,0.132816,102640.0,102630.0,0.50061991]
[1737116469802,0.089716,102640.0,102630.0,0.50061991]
[1737116470105,0.048716,102640.0,102630.0,0.54606684]
[1737116470807,0.048716,102640.0,102630.0,1.46146608]
[1737116471706,0.048716,102640.0,102630.0,1.37036717]
[1737116471909,0.048716,102640.0,102630.0,1.13835377]
[1737116472103,0.13981491,102640.0,102630.0,1.13835377]
[1737116472300,0.13981491,102640.0,102630.0,1.13530684]
[1737116473105,0.3143658,102640.0,102630.0,0.451921]
[1737116473307,0.3586658,102640.0,102630.0,0.451921]
[1737116474194,0.3586658,102640.0,102630.0,0.62600745]
[1737116475107,0.26756689,102640.0,102630.0,0.62600745]
[1737116475508,0.093016,102640.0,102630.0,0.62600745]
[1737116477104,0.093016,102640.0,102630.0,0.63555535]
[1737116478906,0.093016,102640.0,102630.0,0.72665426]
[1737116480514,0.093016,102640.0,102630.0,1.07703464]
[1737116481620,0.048716,102640.0,102630.0,1.07703464]
[1737116481917,0.048716,102640.0,102630.0,0.55561457]
[1737116483115,0.048716,102640.0,102630.0,1.23481535]
[1737116484010,0.048711,102650.0,102640.0,0.048716]
[1737116484318,0.048711,102650.0,102640.0,0.50366152]
[1737116484617,0.048711,102650.0,102640.0,0.41256261]
[1737116484814,0.048711,102650.0,102640.0,0.409516]
[1737116485319,0.13980991,102650.0,102640.0,0.409516]
[1737116485618,0.13980991,102650.0,102640.0,0.81591217]
[1737116487109,0.048711,102650.0,102640.0,0.81591217]
[1737116487317,0.048711,102650.0,102640.0,0.90701108]
[1737116487725,0.048711,102650.0,102640.0,0.95381108]
[1737116489030,0.22326189,102650.0,102640.0,0.72159437]
[1737116490321,0.22326189,102650.0,102640.0,0.54741491]
[1737116490510,0.22326589,102650.0,102640.0,0.54741491]
[1737116490710,0.22326589,102650.0,102640.0,0.18661491]
[1737116491821,0.22326589,102650.0,102640.0,0.54741491]
[1737116492616,0.22326589,102650.0,102640.0,0.18661491]
[1737116496214,0.048715,102650.0,102640.0,0.59301108]
[1737116496422,0.048715,102650.0,102640.0,0.95381108]
[1737116496823,0.048715,102650.0,102640.0,0.9568576]
[1737116497029,0.048715,102650.0,102640.0,0.5960576]
[1737116497824,0.048715,102650.0,102640.0,0.59301108]
[1737116499031,0.048715,102650.0,102640.0,0.95381108]
[1737116499330,0.048715,102650.0,102640.0,0.9568577]
[1737116500819,0.30976089,102660.0,102650.0,0.048716]
[1737116501018,0.30976089,102660.0,102650.0,0.14286127]
[1737116501222,0.30976089,102660.0,102650.0,0.19146127]
[1737116502123,0.18454146,102660.0,102650.0,0.19146127]
[1737116502524,0.00999057,102660.0,102650.0,0.59785447]
[1737116502723,0.05870257,102660.0,102650.0,0.59785437]
[1737116507034,0.41950257,102660.0,102650.0,0.50675546]
[1737116507234,0.41950257,102660.0,102650.0,0.5037092]
[1737116507723,0.41950257,102660.0,102650.0,0.51331509]
[1737116508632,0.41950257,102660.0,102650.0,0.28109838]
[1737116509235,0.41950257,102660.0,102650.0,0.2841448]
[1737116509636,0.41950257,102660.0,102650.0,0.2355448]
[1737116510030,0.46750257,102660.0,102650.0,0.2355448]
[1737116510840,0.28125346,102660.0,102650.0,0.1494208]
[1737116513233,0.28125346,102660.0,102650.0,0.05832189]
[1737116513742,0.64205346,102660.0,102650.0,0.05832189]
[1737116515840,0.28125346,102660.0,102650.0,0.05832189]
[1737116516835,0.64205346,102660.0,102650.0,0.05832189]
[1737116517747,0.64205346,102660.0,102650.0,0.0613683]
[1737116518644,0.46750257,102660.0,102650.0,0.4677615]
[1737116519538,0.55860148,102660.0,102650.0,0.4677615]
[1737116519845,0.46750257,102660.0,102650.0,0.4677615]
[1737116521042,0.55860148,102660.0,102650.0,0.4190455]
[1737116521353,0.55860148,102660.0,102650.0,0.41904559]
[1737116521949,0.55860148,102660.0,102650.0,0.41599909]
[1737116522139,0.55860148,102660.0,102650.0,0.18378238]
[1737116522847,0.46750257,102660.0,102650.0,0.23249838]
[1737116523049,0.55860148,102660.0,102650.0,0.23249838]
[1737116524643,0.82425128,102660.0,102650.0,0.18682888]
[1737116524849,0.82425128,102660.0,102650.0,0.17417649]
[1737116525150,0.73315237,102660.0,102650.0,0.17417649]
[1737116525943,0.60731748,102660.0,102640.0,0.17417649]
[1737116526145,0.048716,102650.0,102640.0,0.22289349]
[1737116527152,0.409516,102650.0,102640.0,0.4551102]
[1737116527447,0.048716,102650.0,102640.0,0.4551102]
[1737116527656,0.409516,102650.0,102640.0,0.4551102]
[1737116528245,0.50061491,102650.0,102640.0,0.4551102]
[1737116529455,0.46935928,102650.0,102640.0,0.4551102]
[1737116529851,0.51525928,102650.0,102640.0,0.4063932]
[1737116530452,0.69050593,102650.0,102640.0,0.17417649]
[1737116530957,0.69050593,102650.0,102640.0,0.22289749]
[1737116531143,0.69050593,102650.0,102640.0,0.17417649]
[1737116531759,0.51525928,102650.0,102640.0,0.17417649]
[1737116532458,0.52474747,102650.0,102640.0,0.22417649]
[1737116532853,0.58062665,102650.0,102640.0,0.05]
[1737116533054,0.62934265,102650.0,102640.0,0.05]
[1737116534067,0.454096,102650.0,102640.0,0.05]
[1737116539960,0.048721,102640.0,102630.0,0.1071372]
[1737116540164,0.10856428,102640.0,102630.0,0.1071372]
[1737116540461,0.10856428,102640.0,102630.0,0.5135304]
[1737116541762,0.10856428,102640.0,102630.0,0.57337368]
[1737116543065,0.048721,102640.0,102630.0,0.57337368]
[1737116543465,0.10856428,102640.0,102630.0,0.57337368]
[1737116545567,0.048721,102640.0,102630.0,0.57337368]
[1737116546970,0.048721,102640.0,102630.0,0.93417368]
[1737116547571,0.4652451,102650.0,102630.0,0.93417368]
[1737116547864,0.22381357,102650.0,102640.0,0.58020756]
[1737116548068,0.22381357,102650.0,102640.0,0.56966428]
[1737116548459,0.28365685,102650.0,102640.0,0.56966428]
[1737116548660,0.22381357,102650.0,102640.0,0.56966428]
[1737116549561,0.22381357,102650.0,102640.0,0.74384077]
[1737116550161,0.22381357,102650.0,102640.0,0.74688726]
[1737116551164,0.048717,102650.0,102640.0,0.74688726]
[1737116555464,0.048717,102650.0,102640.0,0.74384077]
[1737116555773,0.048717,102650.0,102640.0,0.80188099]
[1737116556583,0.048717,102650.0,102640.0,0.81172427]
[1737116557073,0.048717,102650.0,102640.0,0.81477074]
[1737116557573,0.048717,102650.0,102640.0,0.86349174]
[1737116558270,0.47934485,102660.0,102640.0,0.86349174]
[1737116558572,0.409511,102660.0,102650.0,0.15905928]
[1737116558966,0.048711,102660.0,102650.0,0.15905928]
[1737116559168,0.048711,102660.0,102650.0,0.33331664]
[1737116560565,0.048711,102660.0,102650.0,0.56553335]
[1737116561476,0.048711,102660.0,102650.0,0.33331664]
[1737116561864,0.64444785,102670.0,102660.0,0.048711]
[1737116563566,0.46935128,102670.0,102650.0,0.50057027]
[1737116564087,0.46935128,102670.0,102660.0,0.048711]
[1737116564269,0.34593142,102670.0,102660.0,0.048711]
[1737116566070,0.52098489,102670.0,102660.0,0.048711]
[1737116567378,0.34593142,102670.0,102660.0,0.048711]
[1737116567867,0.39793142,102670.0,102660.0,0.048711]
[1737116569279,0.44664042,102670.0,102650.0,0.05862638]
[1737116569481,0.16055428,102660.0,102650.0,0.05862638]
[1737116570985,0.16055428,102660.0,102650.0,0.11846966]
[1737116573081,0.16055428,102660.0,102650.0,0.47926966]
[1737116573281,0.16055428,102660.0,102650.0,0.65352702]
[1737116573482,0.16055428,102660.0,102650.0,0.29272702]
[1737116573885,0.16055428,102660.0,102650.0,0.65352702]
[1737116574279,0.100711,102660.0,102650.0,0.65352702]
[1737116574479,0.16055428,102660.0,102650.0,0.65352702]
[1737116574786,0.100711,102660.0,102650.0,0.65352702]
[1737116574991,0.048711,102660.0,102650.0,0.70402702]
[1737116575289,0.048711,102660.0,102650.0,0.70707329]
[1737116576480,0.048711,102660.0,102650.0,0.53281593]
[1737116576684,0.048711,102660.0,102650.0,0.76503264]
[1737116578081,0.048711,102660.0,102650.0,0.76503263]
[1737116584791,0.10855428,102660.0,102650.0,0.76503263]
[1737116585696,0.10855428,102660.0,102650.0,0.65667102]
[1737116586194,0.10855428,102660.0,102650.0,0.65362476]
[1737116586599,0.22379666,102660.0,102650.0,0.65362476]
[1737116587092,0.22379666,102660.0,102650.0,0.70222476]
[1737116588206,0.22379666,102660.0,102650.0,0.705271]
[1737116588899,0.22379666,102660.0,102650.0,0.70222476]
[1737116590193,0.17508566,102660.0,102650.0,0.76206804]
[1737116590398,0.17508566,102660.0,102650.0,0.76511409]
[1737116590795,0.17508566,102660.0,102650.0,0.79252856]
[1737116590995,0.17508566,102660.0,102650.0,1.02474527]
[1737116592190,0.17508566,102660.0,102650.0,0.96490199]
[1737116592601,0.097418,102670.0,102650.0,0.96490199]
[1737116592602,0.27250366,102670.0,102650.0,0.96490199]
[1737116592803,0.22379366,102670.0,102660.0,0.52015428]
[1737116593709,0.22379366,102670.0,102660.0,0.52320026]
[1737116593902,0.048708,102670.0,102660.0,0.92977207]
[1737116594399,0.72260648,102680.0,102660.0,0.92977207]
[1737116594605,0.04871,102670.0,102660.0,0.92977207]
[1737116595004,0.04871,102670.0,102660.0,0.98961535]
[1737116595199,0.04871,102670.0,102660.0,0.81526025]
[1737116595597,0.04871,102670.0,102660.0,0.81221427]
[1737116595910,0.04871,102670.0,102660.0,0.81526025]
[1737116596204,0.04871,102670.0,102660.0,0.86676025]
[1737116597801,0.04871,102670.0,102660.0,0.86676022]
[1737116598716,0.04871,102670.0,102660.0,0.74707366]
[1737116598898,0.04871,102670.0,102660.0,0.86676022]
[1737116599815,0.04871,102670.0,102660.0,0.86676018]
[1737116600207,0.04871,102670.0,102660.0,0.86371427]
[1737116600604,0.04871,102670.0,102660.0,0.86676018]
[1737116600807,0.04871,102670.0,102660.0,0.86371427]
[1737116601014,0.22379566,102670.0,102660.0,0.86371427]
[1737116601217,0.22379566,102670.0,102660.0,0.63149756]
[1737116601414,0.22379566,102670.0,102660.0,0.58069756]
[1737116602115,0.22379566,102670.0,102660.0,0.75488293]
[1737116603108,0.22379566,102670.0,102660.0,0.63519637]
[1737116603305,0.22379566,102670.0,102660.0,0.52085428]
[1737116604114,0.22379566,102670.0,102660.0,0.58069756]
[1737116604315,0.22379566,102670.0,102660.0,0.75488293]
[1737116605412,0.22379566,102670.0,102660.0,0.58069756]
[1737116608424,0.04871,102670.0,102660.0,1.10224907]
[1737116608625,0.04871,102670.0,102660.0,0.74144907]
[1737116608823,0.04871,102670.0,102660.0,1.10224907]
[1737116610729,0.04871,102670.0,102660.0,0.98256251]
[1737116611024,0.04871,102670.0,102660.0,1.10224907]
[1737116611428,0.04871,102670.0,102660.0,1.10529498]
[1737116611630,0.04871,102670.0,102660.0,1.15769498]
[1737116613926,0.04871,102670.0,102660.0,1.03800842]
[1737116614229,0.04871,102670.0,102660.0,1.15769498]
[1737116614422,0.04871,102670.0,102660.0,1.54309226]
[1737116614819,0.04871,102670.0,102660.0,1.54004635]
[1737116615327,0.04871,102670.0,102660.0,1.54309226]
[1737116615830,0.04871,102670.0,102660.0,1.54004635]
[1737116616529,0.27258866,102680.0,102670.0,0.048706]
[1737116616734,0.27258866,102680.0,102670.0,0.46934928]
[1737116618314,0.097503,102680.0,102670.0,0.87580975]
[1737116621436,0.27258866,102680.0,102670.0,0.87580975]
[1737116622031,0.15433161,102680.0,102670.0,0.87580975]
[1737116622234,0.20303561,102680.0,102670.0,0.87580975]
[1737116623929,0.048704,102680.0,102670.0,0.46934928]